Body,Body Name,Date,TransNo,Amount � (Excl VAT),Supplier name,Description,Expense Area,Expense Type,Expense Code,
http://opendatacommunities.org/id/london-borough-council/sutton,London Borough of Sutton,17/06/2022,10008439,28.78, DNH GO DADDY EUROPE GB,NOTALONEINSUTTON.CO.UK GO DADDY SUBSCRIPTION,Peoples Services,Publicity,A44266,
http://opendatacommunities.org/id/london-borough-council/sutton,London Borough of Sutton,13/06/2022,10008439,690.91, SITEGROUND HOSTING,NOT ALONE IN SUTTON,Peoples Services,Publicity,A44266,
http://opendatacommunities.org/id/london-borough-council/sutton,London Borough of Sutton,26/06/2022,10008439,24.46, EBAY O 15-08792-95443,TOYS AND EQUIPMENT,Health and Wellbeing,Equipment And Materials Purchase,A40000,
http://opendatacommunities.org/id/london-borough-council/sutton,London Borough of Sutton,22/06/2022,10008439,9.99, TWINKL,TWINKL SUBSCRIPTION,Health and Wellbeing,Equipment And Materials Purchase,A40000,
http://opendatacommunities.org/id/london-borough-council/sutton,London Borough of Sutton,22/06/2022,10008439,98.27, AMZNMKTPLACE,TOYS AND EQUIPMENT,Health and Wellbeing,Equipment And Materials Purchase,A40000,
http://opendatacommunities.org/id/london-borough-council/sutton,London Borough of Sutton,31/05/2022,10008439,33.75, B & Q 1191,DECORATING EQUIPMENT,Health and Wellbeing,Equipment And Materials Purchase,A40000,
http://opendatacommunities.org/id/london-borough-council/sutton,London Borough of Sutton,26/05/2022,10008439,5.79, POUNDLAND LTD 1211,TOYS AND EQUIPMENT,Health and Wellbeing,Equipment And Materials Purchase,A40000,
http://opendatacommunities.org/id/london-borough-council/sutton,London Borough of Sutton,26/05/2022,10008439,4.17, THE WORKS,TOY AND EQUIPMENT,Health and Wellbeing,Equipment And Materials Purchase,A40000,
http://opendatacommunities.org/id/london-borough-council/sutton,London Borough of Sutton,30/05/2022,10008439,66.39, TESCO STORES 5999,GROCERIES,Health and Wellbeing,Provisions,A41006,
http://opendatacommunities.org/id/london-borough-council/sutton,London Borough of Sutton,13/06/2022,10008439,29.81, SAINSBURYS S/MKTS,GROCERIES,Health and Wellbeing,Provisions,A41006,
http://opendatacommunities.org/id/london-borough-council/sutton,London Borough of Sutton,07/06/2022,10008439,87.44, TESCO STORES 5999,GROCERIES,Health and Wellbeing,Provisions,A41006,
http://opendatacommunities.org/id/london-borough-council/sutton,London Borough of Sutton,01/06/2022,10008439,15.55, SAINSBURYS S/MKTS,GROCERIES,Health and Wellbeing,Provisions,A41006,
http://opendatacommunities.org/id/london-borough-council/sutton,London Borough of Sutton,01/06/2022,10008439,4.95, ASDA SUPERSTORE,GROCERIES,Health and Wellbeing,Provisions,A41006,
http://opendatacommunities.org/id/london-borough-council/sutton,London Borough of Sutton,21/06/2022,10008439,87.05, TESCO STORES 5999,GROCERIES,Health and Wellbeing,Provisions,A41006,
http://opendatacommunities.org/id/london-borough-council/sutton,London Borough of Sutton,14/06/2022,10008439,12.68, ASDA SUPERSTORE,GROCERIES,Health and Wellbeing,Free Milk,A41007,
http://opendatacommunities.org/id/london-borough-council/sutton,London Borough of Sutton,23/06/2022,10008439,83.60, WWW.AVANTIWESTCOAST.CO,"TRAIN TICKET TO CILIP CONFERENCE, 7-8 JULY 2022",Health and Wellbeing,Arts Programme,A44286,
http://opendatacommunities.org/id/london-borough-council/sutton,London Borough of Sutton,08/06/2022,10008439,3.35, EB  REFUND TO BUYER,REFUND FOR CS EVENT,Health and Wellbeing,Arts Programme,A44286,
http://opendatacommunities.org/id/london-borough-council/sutton,London Borough of Sutton,23/06/2022,10008439,121.86, THETRAINLINE.COM,TRANSPORT,Health and Wellbeing,Conference Expenses,A43075,
http://opendatacommunities.org/id/london-borough-council/sutton,London Borough of Sutton,23/06/2022,10008439,94.58, PREMIER INN,"HOTEL RESERVATION FOR 13TH JULY 2022 AT PREMIER INN PLYMOUTH CITY CENTRE (SUTTON HARBOUR) JU, TO ATTEND HIGH STREET REGENERATION CONFERENCE IN DEVONPORT, PLYMOUTH ON THE 14TH JULY 2022.",Health and Wellbeing,Conference Expenses,A43075,
http://opendatacommunities.org/id/london-borough-council/sutton,London Borough of Sutton,16/06/2022,10008439,25.00, REAL IDEAS TRADING LTD,Conference Booking,Health and Wellbeing,Conference Expenses,A43075,
http://opendatacommunities.org/id/london-borough-council/sutton,London Borough of Sutton,22/06/2022,10008439,65.91, AMZNMKTPLACE AMAZON.CO,NOISE CANCELLING HEADPHONES FOR MEMBER OF STAFF,Health and Wellbeing,Other Supplies & Services,A44291,
http://opendatacommunities.org/id/london-borough-council/sutton,London Borough of Sutton,03/06/2022,10008439,8.32, SPOTIFY P1BCEC26B8,MUSIC FOR WEDDINGS,Health and Wellbeing,Subscriptions,A47010,
http://opendatacommunities.org/id/london-borough-council/sutton,London Borough of Sutton,24/06/2022,10008439,8.18, SAINSBURYS S/MKTS,PLANTS FOR GARDEN,Health and Wellbeing,Miscellaneous Expenses,A49000,
http://opendatacommunities.org/id/london-borough-council/sutton,London Borough of Sutton,17/06/2022,10008439,10.82, MORDEN GARDEN CENTRE,PLANTS FOR GARDEN,Health and Wellbeing,Miscellaneous Expenses,A49000,
http://opendatacommunities.org/id/london-borough-council/sutton,London Borough of Sutton,15/06/2022,10008439,22.50, ASDA STORES 4873,PLANTS FOR GARDEN,Health and Wellbeing,Miscellaneous Expenses,A49000,
http://opendatacommunities.org/id/london-borough-council/sutton,London Borough of Sutton,16/06/2022,10008439,195.08, IW GROUP SERVICES (UK),"MEETING SPACE FOR ""REDACTED - PERSONAL DATA"" FOR TEAM AWAY DAY",Resources,Miscellaneous Expenses,A49000,
http://opendatacommunities.org/id/london-borough-council/sutton,London Borough of Sutton,09/06/2022,10008439,66.60, AMZNMKTPLACE,"SPLIT - NUBWO HEADSET WITH MIC FOR PC, COMPUTER LAPTOP HEADPHONES WITH NOISE CANCELLING MICROPHONE, OVER EAR IN-LINE CONTROL FOR WORK OFFICE HOME ONLINE CLASS (100%)",Peoples Services,Miscellaneous Expenses,A49000,
http://opendatacommunities.org/id/london-borough-council/sutton,London Borough of Sutton,09/06/2022,10008439,8.40, AMZNMKTPLACE,"SPLIT - AMAZON BASICS HIGH-SPEED, ULTRA HD HDMI 2.0 CABLE, SUPPORTS 3D FORMATS AND WITH AUDIO RETURN CHANNEL, 1.8 M (100%)",Peoples Services,Miscellaneous Expenses,A49000,
http://opendatacommunities.org/id/london-borough-council/sutton,London Borough of Sutton,06/06/2022,10008439,8.58, WM MORRISONS STORE,GROCERIES,Resources,Equipment And Materials Purchase,A40000,
http://opendatacommunities.org/id/london-borough-council/sutton,London Borough of Sutton,09/06/2022,10008439,-224.00, MAJESTIC WINE,REFUND FOR GLASS HIRE - ANNUAL MAYOR MAKING 23 MAY 2022,Resources,Hospitality,A46020,
http://opendatacommunities.org/id/london-borough-council/sutton,London Borough of Sutton,24/06/2022,10008439,39.80, DAWSONS,LOCKER KEYS FOR NEW COUNCILLORS FOLLOWING ELECTIONS,Resources,Stationery,A43015,
http://opendatacommunities.org/id/london-borough-council/sutton,London Borough of Sutton,09/06/2022,10008439,99.00, WWW.PUBLICPOLICYEXCHAN,"""REDACTED - PERSONAL DATA"" ATTENDANCE AT IMPROVING SEND PROVISIONS:  DEVELOPING POLICY TO BEST HELP SPECIAL NEEDS CHILDREN",Resources,Conference Expenses,A43075,
http://opendatacommunities.org/id/london-borough-council/sutton,London Borough of Sutton,08/06/2022,10008439,240.80, LNER WEB SALES,TD RETURN TICKET FROM SUTTON TO HARROGATE TO ATTEND LGA CONFERENCE 27 JUNE,Resources,Members Expenses - Travel and Subsistence,A46504,
http://opendatacommunities.org/id/london-borough-council/sutton,London Borough of Sutton,07/06/2022,10008439,130.30, LNER WEB SALES,"TRAIN TICKETS ""REDACTED - PERSONAL DATA"" TO ATTEND LGA CONFERENCE - SUTTON TO HARROGATE",Resources,Members Expenses - Travel and Subsistence,A46504,
http://opendatacommunities.org/id/london-borough-council/sutton,London Borough of Sutton,13/06/2022,10008439,264.30, LNER WEB SALES,"""REDACTED - PERSONAL DATA"" - OPEN RETURN TICKET FROM HARROGATE TO SUTTON FOLLOWING LGA CONFERENCE",Resources,Members Expenses - Travel and Subsistence,A46504,
http://opendatacommunities.org/id/london-borough-council/sutton,London Borough of Sutton,13/06/2022,10008439,0.42, foreign exchange fee,foreign exchange fee,Resources,Publicity,A44266,
http://opendatacommunities.org/id/london-borough-council/sutton,London Borough of Sutton,12/06/2022,10008439,15.43, CLIPCHAMP.COM,CLIPCHAMP SUBSCRIPTION,Resources,Publicity,A44266,
http://opendatacommunities.org/id/london-borough-council/sutton,London Borough of Sutton,06/06/2022,10008439,0.29, foreign exchange fee,foreign exchange fee,Resources,Publicity,A44266,
http://opendatacommunities.org/id/london-borough-council/sutton,London Borough of Sutton,03/06/2022,10008439,10.40, OTTER.AI,OTTER.AI SUBSCIPTION,Resources,Publicity,A44266,
http://opendatacommunities.org/id/london-borough-council/sutton,London Borough of Sutton,26/05/2022,10008439,673.95, ARGOS LTD,CL&G,Resources,"Grants, Contributions & Donations",A47005,
http://opendatacommunities.org/id/london-borough-council/sutton,London Borough of Sutton,23/06/2022,10008439,185.00, ARGOS LTD,CL&G,Resources,"Grants, Contributions & Donations",A47005,
http://opendatacommunities.org/id/london-borough-council/sutton,London Borough of Sutton,19/06/2022,10008439,20.00, OYSTER BUS AUTOLOAD,CL&G,Resources,"Grants, Contributions & Donations",A47005,
http://opendatacommunities.org/id/london-borough-council/sutton,London Borough of Sutton,16/06/2022,10008439,289.97, CURRYS ONLINE,CL&G,Resources,"Grants, Contributions & Donations",A47005,
http://opendatacommunities.org/id/london-borough-council/sutton,London Borough of Sutton,16/06/2022,10008439,389.00, CURRYS ONLINE,CL&G,Resources,"Grants, Contributions & Donations",A47005,
http://opendatacommunities.org/id/london-borough-council/sutton,London Borough of Sutton,16/06/2022,10008439,350.00, ARGOS LTD,CL&G,Resources,"Grants, Contributions & Donations",A47005,
http://opendatacommunities.org/id/london-borough-council/sutton,London Borough of Sutton,16/06/2022,10008439,362.95, ARGOS LTD,CL&G,Resources,"Grants, Contributions & Donations",A47005,
http://opendatacommunities.org/id/london-borough-council/sutton,London Borough of Sutton,16/06/2022,10008439,-330.00, ARGOS LTD,CL&G,Resources,"Grants, Contributions & Donations",A47005,
http://opendatacommunities.org/id/london-borough-council/sutton,London Borough of Sutton,16/06/2022,10008439,-389.00, CURRYS ONLINE,CL&G,Resources,"Grants, Contributions & Donations",A47005,
http://opendatacommunities.org/id/london-borough-council/sutton,London Borough of Sutton,14/06/2022,10008439,190.00, ARGOS LTD,CL&G,Resources,"Grants, Contributions & Donations",A47005,
http://opendatacommunities.org/id/london-borough-council/sutton,London Borough of Sutton,14/06/2022,10008439,333.95, ARGOS LTD,CL&G,Resources,"Grants, Contributions & Donations",A47005,
http://opendatacommunities.org/id/london-borough-council/sutton,London Borough of Sutton,14/06/2022,10008439,333.95, ARGOS LTD,CL&G,Resources,"Grants, Contributions & Donations",A47005,
http://opendatacommunities.org/id/london-borough-council/sutton,London Borough of Sutton,13/06/2022,10008439,335.00, ARGOS LTD,CL&G,Resources,"Grants, Contributions & Donations",A47005,
http://opendatacommunities.org/id/london-borough-council/sutton,London Borough of Sutton,13/06/2022,10008439,220.00, ARGOS LTD,CL&G,Resources,"Grants, Contributions & Donations",A47005,
http://opendatacommunities.org/id/london-borough-council/sutton,London Borough of Sutton,09/06/2022,10008439,456.95, ARGOS LTD,CL&G,Resources,"Grants, Contributions & Donations",A47005,
http://opendatacommunities.org/id/london-borough-council/sutton,London Borough of Sutton,03/06/2022,10008439,20.00, TFL OYSTER AUTO TOPUP,CL&G,Resources,"Grants, Contributions & Donations",A47005,
http://opendatacommunities.org/id/london-borough-council/sutton,London Borough of Sutton,01/06/2022,10008439,150.00, ARGOS LTD,CL&G,Resources,"Grants, Contributions & Donations",A47005,
http://opendatacommunities.org/id/london-borough-council/sutton,London Borough of Sutton,01/06/2022,10008439,220.00, ARGOS LTD,CL&G,Resources,"Grants, Contributions & Donations",A47005,
http://opendatacommunities.org/id/london-borough-council/sutton,London Borough of Sutton,01/06/2022,10008439,114.95, ARGOS LTD,CL&G,Resources,"Grants, Contributions & Donations",A47005,
http://opendatacommunities.org/id/london-borough-council/sutton,London Borough of Sutton,01/06/2022,10008439,150.00, ARGOS LTD,CL&G,Resources,"Grants, Contributions & Donations",A47005,
http://opendatacommunities.org/id/london-borough-council/sutton,London Borough of Sutton,01/06/2022,10008439,114.95, ARGOS LTD,CL&G,Resources,"Grants, Contributions & Donations",A47005,
http://opendatacommunities.org/id/london-borough-council/sutton,London Borough of Sutton,01/06/2022,10008439,-150.00, ARGOS LTD,CL&G,Resources,"Grants, Contributions & Donations",A47005,
http://opendatacommunities.org/id/london-borough-council/sutton,London Borough of Sutton,01/06/2022,10008439,-114.95, ARGOS LTD,CL&G,Resources,"Grants, Contributions & Donations",A47005,
http://opendatacommunities.org/id/london-borough-council/sutton,London Borough of Sutton,31/05/2022,10008439,473.95, ARGOS LTD,CL&G,Resources,"Grants, Contributions & Donations",A47005,
http://opendatacommunities.org/id/london-borough-council/sutton,London Borough of Sutton,31/05/2022,10008439,173.95, ARGOS LTD,CL&G,Resources,"Grants, Contributions & Donations",A47005,
http://opendatacommunities.org/id/london-borough-council/sutton,London Borough of Sutton,27/05/2022,10008439,390.95, ARGOS LTD,CL&G,Resources,"Grants, Contributions & Donations",A47005,
http://opendatacommunities.org/id/london-borough-council/sutton,London Borough of Sutton,23/06/2022,10008439,82.92, AMZNMKTPLACE AMAZON.CO,SPLIT - ADJUSTABLE DESK - STAND UP DESK - 32 INCH - MONITOR MOUNT COMPUTER STAND - ERGONOMIC COMPUTER STAND - TABLET AND SMARTPHONE HOLDER - NON-SLIP FEET - H (100%),Resources,Miscellaneous Expenses,A49000,
http://opendatacommunities.org/id/london-borough-council/sutton,London Borough of Sutton,26/05/2022,10008439,84.84, AMZNMKTPLACE AMAZON.CO,ITEMS REQUIRED FOR THE BEACON LIGHTING EVENT FOR THE QUEENS JUBILEE.  TO BE RECHARGED.,Resources,Contingency,A49001,
http://opendatacommunities.org/id/london-borough-council/sutton,London Borough of Sutton,23/06/2022,10008439,110.26, AMZNMKTPLACE,KEY SAFE AND FOBS REQUIRED FOR SECURITY KEYS STORAGE.,Resources,Contingency,A49001,
http://opendatacommunities.org/id/london-borough-council/sutton,London Borough of Sutton,21/06/2022,10008439,102.42, AMZNMKTPLACE,"ITEMS REQUIRED FOR THE LCH INNOVATION GATEWAY, PLEASE MOVE TO E46420.",Resources,Contingency,A49001,
http://opendatacommunities.org/id/london-borough-council/sutton,London Borough of Sutton,16/06/2022,10008439,199.91, AMZNMKTPLACE,FANS REQUIRED FOR THE BUILDING DUE TO CHILLERS BEING FAULTY.,Resources,Contingency,A49001,
http://opendatacommunities.org/id/london-borough-council/sutton,London Borough of Sutton,27/05/2022,10008439,71.50, SHOP.SWIMMING.ORG,BOOK REQUIRED ON SWIMMING POOLS TO SUPPORT THE SUTTON INCLUSION CENTRE RISK ANALYSIS OF THE HYDROPOOL AND L8.,Resources,Contingency,A49001,
http://opendatacommunities.org/id/london-borough-council/sutton,London Borough of Sutton,07/06/2022,10008439,1.50, FIND A WILL,"""REDACTED - PERSONAL DATA""PROBATE SEARCH FOR WILL",Resources,Legal Services,A44025,
http://opendatacommunities.org/id/london-borough-council/sutton,London Borough of Sutton,23/06/2022,10008439,177.73, FACEBK TKGKUFTAL2,FACEBOOK ADS - BUSINESS WORKSHOPS,Development Growth and Regeneration,Publicity,A44266,
http://opendatacommunities.org/id/london-borough-council/sutton,London Borough of Sutton,21/06/2022,10008439,228.15, MAILCHIMP,MONTHLY SUBSCRIPTON LBS,Development Growth and Regeneration,Publicity,A44266,
http://opendatacommunities.org/id/london-borough-council/sutton,London Borough of Sutton,14/06/2022,10008439,376.87, MAILCHIMP,MONTHLY SUBSCRIPTON LBS,Development Growth and Regeneration,Publicity,A44266,
http://opendatacommunities.org/id/london-borough-council/sutton,London Borough of Sutton,22/06/2022,10008439,340.00, L N S FURNITURE LTD,AFGHAN RESETTLEMENT SCHEME,Environment Housing and Neighbourhoods,Other Supplies & Services,A44291,
http://opendatacommunities.org/id/london-borough-council/sutton,London Borough of Sutton,22/06/2022,10008439,133.33, TESCO STORE 3235,AFGHAN RESETTLEMENT SCHEME,Environment Housing and Neighbourhoods,Other Supplies & Services,A44291,
http://opendatacommunities.org/id/london-borough-council/sutton,London Borough of Sutton,30/05/2022,10008439,76.50, WILKO RETAIL LIMITED,AFGHAN RESETTLEMENT SCHEME,Environment Housing and Neighbourhoods,Other Supplies & Services,A44291,
http://opendatacommunities.org/id/london-borough-council/sutton,London Borough of Sutton,30/05/2022,10008439,-33.33, WILKO RETAIL LIMITED,AFGHAN RESETTLEMENT SCHEME,Environment Housing and Neighbourhoods,Other Supplies & Services,A44291,
http://opendatacommunities.org/id/london-borough-council/sutton,London Borough of Sutton,26/05/2022,10008439,76.00, WILKO RETAIL LIMITED,AFGHAN RESETTLEMENT SCHEME,Environment Housing and Neighbourhoods,Other Supplies & Services,A44291,
http://opendatacommunities.org/id/london-borough-council/sutton,London Borough of Sutton,26/05/2022,10008439,151.00, TESCO STORE 3235,AFGHAN RESETTLEMENT SCHEME,Environment Housing and Neighbourhoods,Other Supplies & Services,A44291,
http://opendatacommunities.org/id/london-borough-council/sutton,London Borough of Sutton,10/06/2022,10008439,-11.00, SUTTON REGISTER OFFICE,BIRTH CERT REFUND,Peoples Services,Equipment And Materials Purchase,A40000,
http://opendatacommunities.org/id/london-borough-council/sutton,London Borough of Sutton,13/05/2022,10008439,-7.50, GEN REGISTER OFFICE,REPLACEMENT BIRTH CERTIFICATE REFUND,Peoples Services,Equipment And Materials Purchase,A40000,
http://opendatacommunities.org/id/london-borough-council/sutton,London Borough of Sutton,09/06/2022,10008439,11.67, GEN REGISTER OFFICE,BIRTH CERT REQUIRED FOR LEGAL PURPOSES,Peoples Services,Equipment And Materials Purchase,A40000,
http://opendatacommunities.org/id/london-borough-council/sutton,London Borough of Sutton,14/06/2022,10008439,19.72, SAINSBURYS S/MKTS,AK ACTIVITY,Peoples Services,Miscellaneous Expenses,A49000,
http://opendatacommunities.org/id/london-borough-council/sutton,London Borough of Sutton,31/05/2022,10008439,17.90, MCDONALDS 27,"""REDACTED - PERSONAL DATA""",Peoples Services,Miscellaneous Expenses,A49000,
http://opendatacommunities.org/id/london-borough-council/sutton,London Borough of Sutton,26/05/2022,10008439,11.00, SUTTON REGISTER OFFICE,LH BIRTH CERTIFICATE,Peoples Services,Miscellaneous Expenses,A49000,
http://opendatacommunities.org/id/london-borough-council/sutton,London Borough of Sutton,14/06/2022,10008439,197.46, ARGOS LTD,ITEMS REQUIRED FOR A YOUNG PERSON,Peoples Services,Set Up Costs - Children Leaving Care,A61021,
http://opendatacommunities.org/id/london-borough-council/sutton,London Borough of Sutton,08/06/2022,10008439,19.17, IKEA LTD SHOP ONLINE,ITEMS REQUIRED FOR A YOUNG PERSON,Peoples Services,Set Up Costs - Children Leaving Care,A61021,
http://opendatacommunities.org/id/london-borough-council/sutton,London Borough of Sutton,01/06/2022,10008439,515.00, ARGOS LTD,ARGOS ORDER,Peoples Services,Set Up Costs - Children Leaving Care,A61021,
http://opendatacommunities.org/id/london-borough-council/sutton,London Borough of Sutton,01/06/2022,10008439,415.00, ARGOS LTD,ARGOS ORDER,Peoples Services,Set Up Costs - Children Leaving Care,A61021,
http://opendatacommunities.org/id/london-borough-council/sutton,London Borough of Sutton,07/06/2022,10008439,19.17, IKEA LTD SHOP ONLINE,ITEMS REQUIRED FOR A YOUNG PERSON,Peoples Services,Set Up Costs - Children Leaving Care,A61021,
http://opendatacommunities.org/id/london-borough-council/sutton,London Borough of Sutton,07/06/2022,10008439,170.00, CURRYS ONLINE,ITEMS REQUIRED FOR A YOUNG PERSON,Peoples Services,Set Up Costs - Children Leaving Care,A61021,
http://opendatacommunities.org/id/london-borough-council/sutton,London Borough of Sutton,01/06/2022,10008439,615.00, IKEA LTD SHOP ONLINE,IKEA ORDER,Peoples Services,Set Up Costs - Children Leaving Care,A61021,
http://opendatacommunities.org/id/london-borough-council/sutton,London Borough of Sutton,01/06/2022,10008439,91.45, ARGOS LTD,ARGOS ORDER,Peoples Services,Set Up Costs - Children Leaving Care,A61021,
http://opendatacommunities.org/id/london-borough-council/sutton,London Borough of Sutton,08/06/2022,10008439,-415.00, ARGOS LTD,ARGOS ORDER,Peoples Services,Set Up Costs - Children Leaving Care,A61021,
http://opendatacommunities.org/id/london-borough-council/sutton,London Borough of Sutton,06/06/2022,10008439,498.00, IKEA LTD SHOP ONLINE,IKEA SOFA PAYMENT,Peoples Services,Set Up Costs - Children Leaving Care,A61021,
http://opendatacommunities.org/id/london-borough-council/sutton,London Borough of Sutton,14/06/2022,10008439,-49.00, PEARSON ED LTD,REFUND FOR CERTIFICATE FOR THE LEAVING CARE TEAM,Peoples Services,Miscellaneous Expenses,A49000,
http://opendatacommunities.org/id/london-borough-council/sutton,London Borough of Sutton,27/05/2022,10008439,68.00, MR MULLIGANS BASILDON,CONTACT VISIT ADVENTURE GOLF FOR FAMILY,Peoples Services,Miscellaneous Expenses,A49000,
http://opendatacommunities.org/id/london-borough-council/sutton,London Borough of Sutton,26/05/2022,10008439,49.00, PEARSON ED LTD,REPLACEMENT ENGLISH/MATHS CERTIFICATES FOR LOOKED AFTER CHILD,Peoples Services,Miscellaneous Expenses,A49000,
http://opendatacommunities.org/id/london-borough-council/sutton,London Borough of Sutton,26/05/2022,10008439,49.00, PEARSON ED LTD,REPLACEMENT ENGLISH/MATHS CERTIFICATES FOR LOOKED AFTER CHILD,Peoples Services,Miscellaneous Expenses,A49000,
http://opendatacommunities.org/id/london-borough-council/sutton,London Borough of Sutton,26/05/2022,10008439,-14.15, ZAFETY SUPPLIES LTD,REFUND AS THE ITEMS WERE NOT AVAILABLE,Peoples Services,Miscellaneous Expenses,A49000,
http://opendatacommunities.org/id/london-borough-council/sutton,London Borough of Sutton,19/06/2022,10008439,9.99, AMZNMKTPLACE,ITEM FOR A YOUNG PERSON AT WILLOW RISE CHILDRENS HOME (49.97%),Peoples Services,Miscellaneous Expenses,A49000,
http://opendatacommunities.org/id/london-borough-council/sutton,London Borough of Sutton,19/06/2022,10008439,10.00, AMZNMKTPLACE,ITEM FOR A YOUNG PERSON AT WILLOW RISE CHILDRENS HOME (50.03%),Peoples Services,Miscellaneous Expenses,A49000,
http://opendatacommunities.org/id/london-borough-council/sutton,London Borough of Sutton,09/06/2022,10008439,90.43, ASDA GROCERIES ONLINE,ASDA SHOPPING PAYMENT,Peoples Services,Miscellaneous Expenses,A49000,
http://opendatacommunities.org/id/london-borough-council/sutton,London Borough of Sutton,09/06/2022,10008439,-10.05, ASDA GROCERIES ONLINE,ASDA SHOPPING PAYMENT,Peoples Services,Miscellaneous Expenses,A49000,
http://opendatacommunities.org/id/london-borough-council/sutton,London Borough of Sutton,01/06/2022,10008439,212.95, ARGOS LTD,ARGOS ORDER,Peoples Services,Miscellaneous Expenses,A49000,
http://opendatacommunities.org/id/london-borough-council/sutton,London Borough of Sutton,01/06/2022,10008439,75.30, ARSENAL STADIUM,ARSENAL TICKETS,Peoples Services,Miscellaneous Expenses,A49000,
http://opendatacommunities.org/id/london-borough-council/sutton,London Borough of Sutton,30/05/2022,10008439,66.95, ARGOS LTD,ARGOS ORDER,Peoples Services,Miscellaneous Expenses,A49000,
http://opendatacommunities.org/id/london-borough-council/sutton,London Borough of Sutton,29/05/2022,10008439,7.49, AMZNMKTPLACE,SPLIT - KIDS B CRAFTY 24 GIANT BRIGHT COLOURED CHALKS CHUNKY PAVEMENT WASHABLE FUN FOR CHILDREN 8 SUPER VIBRANT COLOURS - OUTDOOR - GARDEN SCHOOL DRAWING GAME (100%),Peoples Services,Miscellaneous Expenses,A49000,
http://opendatacommunities.org/id/london-borough-council/sutton,London Borough of Sutton,13/06/2022,10008439,99.96, AMZNMKTPLACE AMAZON.CO,ITEM FOR A YOUNG PERSON AT WILLOW RISE CHILDRENS HOME (100%),Peoples Services,Miscellaneous Expenses,A49000,
http://opendatacommunities.org/id/london-borough-council/sutton,London Borough of Sutton,13/06/2022,10008439,24.99, AMZNMKTPLACE,ITEM FOR A YOUNG PERSON AT WILLOW RISE CHILDRENS HOME (100%),Peoples Services,Miscellaneous Expenses,A49000,
http://opendatacommunities.org/id/london-borough-council/sutton,London Borough of Sutton,10/06/2022,10008439,24.73, EMPIRE CINEMAS,ACTIVITY FOR YOUNG PERSON AT WILLOW RISE CHILDREN'S HOME,Peoples Services,Miscellaneous Expenses,A49000,
http://opendatacommunities.org/id/london-borough-council/sutton,London Borough of Sutton,01/06/2022,10008439,39.00, THORPE PARK,THORPE PARK,Peoples Services,Miscellaneous Expenses,A49000,
http://opendatacommunities.org/id/london-borough-council/sutton,London Borough of Sutton,14/06/2022,10008439,24.99, AMZNMKTPLACE,ITEM FOR A YOUNG PERSON AT WILLOW RISE CHILDRENS HOME (100%),Peoples Services,Miscellaneous Expenses,A49000,
http://opendatacommunities.org/id/london-borough-council/sutton,London Borough of Sutton,17/06/2022,10008439,17.40, AMZNMKTPLACE,ITEM FOR A YOUNG PERSON AT WILLOW RISE CHILDRENS HOME (87.48%),Peoples Services,Miscellaneous Expenses,A49000,
http://opendatacommunities.org/id/london-borough-council/sutton,London Borough of Sutton,17/06/2022,10008439,2.49, AMZNMKTPLACE,ITEM FOR A YOUNG PERSON AT WILLOW RISE CHILDRENS HOME (12.52%),Peoples Services,Miscellaneous Expenses,A49000,
http://opendatacommunities.org/id/london-borough-council/sutton,London Borough of Sutton,16/06/2022,10008439,9.34, AMZNMKTPLACE,ITEM FOR A YOUNG PERSON AT WILLOW RISE CHILDRENS HOME (100%),Peoples Services,Miscellaneous Expenses,A49000,
http://opendatacommunities.org/id/london-borough-council/sutton,London Borough of Sutton,16/06/2022,10008439,6.98, AMZNMKTPLACE,ITEM FOR A YOUNG PERSON AT WILLOW RISE CHILDRENS HOME (100%),Peoples Services,Miscellaneous Expenses,A49000,
http://opendatacommunities.org/id/london-borough-council/sutton,London Borough of Sutton,16/06/2022,10008439,9.99, AMZNMKTPLACE,ITEM FOR A YOUNG PERSON AT WILLOW RISE CHILDRENS HOME (100%),Peoples Services,Miscellaneous Expenses,A49000,
http://opendatacommunities.org/id/london-borough-council/sutton,London Borough of Sutton,15/06/2022,10008439,-212.95, ARGOS LTD,ARGOS ORDER,Peoples Services,Miscellaneous Expenses,A49000,
http://opendatacommunities.org/id/london-borough-council/sutton,London Borough of Sutton,26/05/2022,10008439,252.95, ARGOS LTD,OVEN PURCHASED FOR VUNERABLE ADULT,Peoples Services,Miscellaneous Expenses,A49000,
http://opendatacommunities.org/id/london-borough-council/sutton,London Borough of Sutton,07/06/2022,10008439,841.75, OPUS CARPETS,CARPET PAYMENT,Peoples Services,Set Up Costs - Children Leaving Care,A61021,
http://opendatacommunities.org/id/london-borough-council/sutton,London Borough of Sutton,30/05/2022,10008439,159.90, ZOOM.US 888-799-9666,NEEDED FOR TEAM MEETINGS,Peoples Services,Subscriptions,A47010,
http://opendatacommunities.org/id/london-borough-council/sutton,London Borough of Sutton,17/06/2022,10008439,159.90, ZOOM.US 888-799-9666,A47010 G03100,Peoples Services,Subscriptions,A47010,
http://opendatacommunities.org/id/london-borough-council/sutton,London Borough of Sutton,16/06/2022,10008439,20.62, WANDSWORTH COUNCIL,BIRTH CERT REQUIRED FOR LEGAL PURPOSES,Peoples Services,Equipment And Materials Purchase,A40000,
http://opendatacommunities.org/id/london-borough-council/sutton,London Borough of Sutton,27/05/2022,10008439,22.00, SUTTON REGISTER OFFICE,BIRTH CERT,Peoples Services,Equipment And Materials Purchase,A40000,
http://opendatacommunities.org/id/london-borough-council/sutton,London Borough of Sutton,25/05/2022,10008439,25.00, LB CROYDON,BIRTH CERT,Peoples Services,Equipment And Materials Purchase,A40000,
http://opendatacommunities.org/id/london-borough-council/sutton,London Borough of Sutton,30/05/2022,10008439,27.50, SUTTON REGISTER OFFICE,BIRTH CERTS NEEDED FOR LEGAL PROCEEDINGS,Peoples Services,Equipment And Materials Purchase,A40000,
http://opendatacommunities.org/id/london-borough-council/sutton,London Borough of Sutton,10/06/2022,10008439,1.96, POST OFFICE COUNTER,POSTING CHARGE FOR A PASSPORT,Peoples Services,Equipment And Materials Purchase,A40000,
http://opendatacommunities.org/id/london-borough-council/sutton,London Borough of Sutton,08/06/2022,10008439,11.46, WANDSWORTH COUNCIL,BIRTH CERTIFICATE REQUIRED FOR LEGAL PURPOSES,Peoples Services,Equipment And Materials Purchase,A40000,
http://opendatacommunities.org/id/london-borough-council/sutton,London Borough of Sutton,08/06/2022,10008439,70.00, SUTTON REGISTER OFFICE,BIRTH CERTIFICATE PAYMENTS,Peoples Services,Equipment And Materials Purchase,A40000,
http://opendatacommunities.org/id/london-borough-council/sutton,London Borough of Sutton,07/06/2022,10008439,24.00, WWW.RBKC.GOV.UK,BIRTH CERT,Peoples Services,Equipment And Materials Purchase,A40000,
http://opendatacommunities.org/id/london-borough-council/sutton,London Borough of Sutton,17/06/2022,10008439,"1,151.72", AWP HEALTH & LIFE,HEALTH INSURANCE FOR A CHILD IN SPAIN,Peoples Services,Miscellaneous Expenses,A49000,
http://opendatacommunities.org/id/london-borough-council/sutton,London Borough of Sutton,18/06/2022,10008439,48.75, HM PASSPORT OFFICE,PASSPORT APPLICATION WHICH WAS SENT OFF,Peoples Services,Miscellaneous Expenses,A49000,
http://opendatacommunities.org/id/london-borough-council/sutton,London Borough of Sutton,07/06/2022,10008439,93.60, ROYAL BEACON HOTEL,ROYAL BEACON HOTEL PAYMENT,Peoples Services,Client Care/Assistance,A61011,
http://opendatacommunities.org/id/london-borough-council/sutton,London Borough of Sutton,07/06/2022,10008439,93.60, ROYAL BEACON HOTEL,ROYAL BEACON HOTEL PAYMENT,Peoples Services,Client Care/Assistance,A61011,
http://opendatacommunities.org/id/london-borough-council/sutton,London Borough of Sutton,26/06/2022,10008439,27.99, FACEBK  P8EVUCKG32,FACEBOOK ADVERTISING FOR FOSTERING RECRUITMENT,Peoples Services,Recruitment Expenses,A15026,
http://opendatacommunities.org/id/london-borough-council/sutton,London Borough of Sutton,06/06/2022,10008439,70.00, FACEBK  JKD2ED7H32,FACEBOOK ADS FOR FOSTERING RECRUITMENT,Peoples Services,Recruitment Expenses,A15026,
http://opendatacommunities.org/id/london-borough-council/sutton,London Borough of Sutton,26/05/2022,10008439,15.00, FACEBK  QEAM3CKG32,FACEBOOK ADS FOR FOSTERING RECRUITMENT,Peoples Services,Recruitment Expenses,A15026,
http://opendatacommunities.org/id/london-borough-council/sutton,London Borough of Sutton,26/05/2022,10008439,179.99, ARGOS LTD,SIM FREE SAMSUNG A22 5G MOBILE PHONE FOR LOOKED AFTER CHILD FOR FOSTERING TEAM,Peoples Services,Client Care/Assistance,A61011,
http://opendatacommunities.org/id/london-borough-council/sutton,London Borough of Sutton,01/06/2022,10008439,360.00, WWW.CORAM.ORG.UK,4 X LEARNING FROM CASE REVIEW TRAINING SESSIONS,Peoples Services,Staff Development And Training,A15022,
http://opendatacommunities.org/id/london-borough-council/sutton,London Borough of Sutton,17/06/2022,10008439,48.00, EB  PLACING CHILDREN O,"TRAINING FOR SOCIAL WORKER ""PLACING CHILDREN OVERSEAS ON AN SGO""",Peoples Services,Equipment And Materials Purchase,A40000,
http://opendatacommunities.org/id/london-borough-council/sutton,London Borough of Sutton,14/06/2022,10008439,85.83, PARKGATE HOTEL CARDIFF,HOTEL REQUIRED,Peoples Services,Client Care/Assistance,A61011,
http://opendatacommunities.org/id/london-borough-council/sutton,London Borough of Sutton,27/05/2022,10008439,35.00, MARKS&SPENCER PLC,FLOWERS FROM THE FOSTERING TEAM FOR FORMER FOSTER CARERS TO THANK THEM FOR THEIR OUTSTANDING WORK AND COMMITMENT TO THE CHILDREN YOU CARED FOR. YOU WILL BEMISSED.,Peoples Services,Client Care/Assistance,A61011,
http://opendatacommunities.org/id/london-borough-council/sutton,London Borough of Sutton,08/06/2022,10008439,40.70, WM MORRISONS STORE,MORRISONS BISCUITS SHOPPING FOR CONFERENCE,Peoples Services,Catering,A41000,
http://opendatacommunities.org/id/london-borough-council/sutton,London Borough of Sutton,06/06/2022,10008439,250.00, AMAZON.CO.UK 2G1BB1RW4,CONFERENCE AWARDS: X4 25 AMAZON VOUCHERS & X3 50 AMAZON VOUCHERS,Peoples Services,Stationery,A43015,
http://opendatacommunities.org/id/london-borough-council/sutton,London Borough of Sutton,31/05/2022,10008439,23.95, STAPLES,STAPLES STATIONARY FOR CONFERENCE,Peoples Services,Stationery,A43015,
http://opendatacommunities.org/id/london-borough-council/sutton,London Borough of Sutton,26/05/2022,10008439,476.00, PREMIER INN,PREMIER INN ACCOMODATION FOR AN ADULT AND CHILD 27- 29 MAY 2022 FOR CHILDREN WITH DISABILITIES TEAM,Peoples Services,Miscellaneous Expenses,A49000,
http://opendatacommunities.org/id/london-borough-council/sutton,London Borough of Sutton,18/05/2022,10008439,-6.25, GEN REGISTER OFFICE,REFUND FOR A BIRTH CERTIFICATE,Peoples Services,Equipment And Materials Purchase,A40000,
http://opendatacommunities.org/id/london-borough-council/sutton,London Borough of Sutton,24/06/2022,10008439,985.00, TRAVELHOUSE,AIRPLANE TICKET - GREEN WEST LOCALITY,Peoples Services,Equipment And Materials Purchase,A40000,
http://opendatacommunities.org/id/london-borough-council/sutton,London Borough of Sutton,27/05/2022,10008439,415.00, IKEA LTD SHOP ONLINE,BED AND MATRESS FOR CLIENT OF GREEN WEST LOCALITY,Peoples Services,Client Care/Assistance,A61011,
http://opendatacommunities.org/id/london-borough-council/sutton,London Borough of Sutton,01/06/2022,10008439,"1,993.29", IHS042532066PA01 2022-,"""REDACTED - PERSONAL DATA"" - G03830 Green West Locality""REDACTED - PERSONAL DATA""",Peoples Services,Client Care/Assistance,A61011,
http://opendatacommunities.org/id/london-borough-council/sutton,London Borough of Sutton,06/06/2022,10008439,54.82, foreign exchange fee,Application Exchange Fee,Peoples Services,Concessionary Fares for the Elderly,A61012,
http://opendatacommunities.org/id/london-borough-council/sutton,London Borough of Sutton,07/06/2022,10008439,33.00, SUTTON REGISTER OFFICE,BIRTH CERT,Peoples Services,Equipment And Materials Purchase,A40000,
http://opendatacommunities.org/id/london-borough-council/sutton,London Borough of Sutton,06/06/2022,10008439,22.00, SUTTON REGISTER OFFICE,BIRTH CERT,Peoples Services,Equipment And Materials Purchase,A40000,
http://opendatacommunities.org/id/london-borough-council/sutton,London Borough of Sutton,07/06/2022,10008439,11.00, SUTTON REGISTER OFFICE,BIRTH CERT,Peoples Services,Equipment And Materials Purchase,A40000,
http://opendatacommunities.org/id/london-borough-council/sutton,London Borough of Sutton,08/06/2022,10008439,11.00, SUTTON REGISTER OFFICE,BIRTH CERTIFICATE PAYMENT,Peoples Services,Equipment And Materials Purchase,A40000,
http://opendatacommunities.org/id/london-borough-council/sutton,London Borough of Sutton,08/06/2022,10008439,40.00, WALLINGTON CARS & COUR,TAXI PAYMENT,Peoples Services,C.C.A Travel & Subsistance,A61010,
http://opendatacommunities.org/id/london-borough-council/sutton,London Borough of Sutton,10/06/2022,10008439,186.40, STORAGEMART UK #5215,STORAGE REQUIRED,Peoples Services,Storage And Archiving Services,A44085,
http://opendatacommunities.org/id/london-borough-council/sutton,London Borough of Sutton,15/06/2022,10008439,960.00, RCN PUBLISHING COMPANY,"ADVERT PLACED FOR ADMIRAL NURSE FOR ""REDACTED - PERSONAL DATA""",Peoples Services,Equipment And Materials Purchase,A40000,
http://opendatacommunities.org/id/london-borough-council/sutton,London Borough of Sutton,09/06/2022,10008439,275.00, WWW.2PROTECT.CO.UK,PPE EQUIPMENT,Peoples Services,Health & Safety Equipment,A40080,
http://opendatacommunities.org/id/london-borough-council/sutton,London Borough of Sutton,26/05/2022,10008439,2.33, AMZNMKTPLACE AMAZON.CO,"SPLIT - COMMAND NARROW PICTURE HANGING STRIPS, PACK OF 4 X 2 ADHESIVE STRIPS, WHITE - DAMAGE FREE HANGING - FOR PICTURES, FRAMES AND WALL D�COR - HOLDS UP TO (100%)",Peoples Services,Miscellaneous Expenses,A49000,
http://opendatacommunities.org/id/london-borough-council/sutton,London Borough of Sutton,14/06/2022,10008439,418.29, CS MORRISONS GIFT CARD,EMERGENCY FOOD VOUCHERS FOR START CLIENTS,Peoples Services,Miscellaneous Expenses,A49000,
http://opendatacommunities.org/id/london-borough-council/sutton,London Borough of Sutton,13/06/2022,10008439,422.30, ASDA STORES LTD,EMERGENCY FOOD VOUCHERS FOR START CLIENTS,Peoples Services,Miscellaneous Expenses,A49000,
http://opendatacommunities.org/id/london-borough-council/sutton,London Borough of Sutton,13/06/2022,10008439,420.21, HIGHSTREETVOUCHERS,EMERGENCY FOOD VOUCHERS FOR START CLIETNS,Peoples Services,Miscellaneous Expenses,A49000,
http://opendatacommunities.org/id/london-borough-council/sutton,London Borough of Sutton,13/06/2022,10008439,75.71, COSTCO WHOLESALE #121,VENDING MACHINE STOCK,Health and Wellbeing,Catering,A41000,
http://opendatacommunities.org/id/london-borough-council/sutton,London Borough of Sutton,14/06/2022,10008439,810.79, ARGOS LTD,MEACO 14K AIR CONDITIONING UNIT X2,Health and Wellbeing,Equipment And Materials Purchase,A40000,
http://opendatacommunities.org/id/london-borough-council/sutton,London Borough of Sutton,01/06/2022,10008439,42.81, GSUITE_SUTTONCOLLEGE.A,GOOGLE CLOUD EMEA LIMITED 4209109562,Health and Wellbeing,Subscriptions,A47010,
http://opendatacommunities.org/id/london-borough-council/sutton,London Borough of Sutton,06/06/2022,10008439,"1,510.00", INSTANTPRINT.CO.UK,INSTANTPRINT 2223 A4 FLYERS FOR AHMAD 60000 060622 1510.00,Health and Wellbeing,Publicity,A44266,
http://opendatacommunities.org/id/london-borough-council/sutton,London Borough of Sutton,01/06/2022,10008439,38.00, WWW.INSTANTPRINT.C,INSTANTPRINT 2223 COURSE GUIDES & ENROL 230522 1181 AND 38,Health and Wellbeing,Publicity,A44266,
http://opendatacommunities.org/id/london-borough-council/sutton,London Borough of Sutton,31/05/2022,10008439,67.93, WWW.INSTANTPRINT.C,INSTANTPRINT ART BANNERS 81.52 310522,Health and Wellbeing,Publicity,A44266,
http://opendatacommunities.org/id/london-borough-council/sutton,London Borough of Sutton,30/05/2022,10008439,78.58, MAILCHIMP,MAILCHIMP 300522 78.58,Health and Wellbeing,Publicity,A44266,
http://opendatacommunities.org/id/london-borough-council/sutton,London Borough of Sutton,10/06/2022,10008439,35.76, WWW.INSTANTPRINT.C,INSTANTPRINT 100622 6 POSTERS 2223 LAUNCH 42.91,Health and Wellbeing,Publicity,A44266,
http://opendatacommunities.org/id/london-borough-council/sutton,London Borough of Sutton,07/06/2022,10008439,47.99, ADOBE STOCK,ADOBE 070622 47.99,Health and Wellbeing,Publicity,A44266,
http://opendatacommunities.org/id/london-borough-council/sutton,London Borough of Sutton,06/06/2022,10008439,4.95, AMZNMKTPLACE,"SPLIT - 2 ROLLS MASKING TAPES, 50M X 50MM MASKING TAPE FOR PAINTING STRONG ADHESIVE MASKING TAPE FOR GLASS, PAINTING, ARTISTS, DECORATING, CRAFTS, SCHOOL STAT (100%)",Health and Wellbeing,Publicity,A44266,
http://opendatacommunities.org/id/london-borough-council/sutton,London Borough of Sutton,06/06/2022,10008439,148.02, WWW.INSTANTPRINT.C,INSTANTPRINT HISTORY BOOKLET 1000 148.02 060622,Health and Wellbeing,Publicity,A44266,
http://opendatacommunities.org/id/london-borough-council/sutton,London Borough of Sutton,06/06/2022,10008439,148.02, WWW.INSTANTPRINT.C,INSTANTPRINT ART BOOKLET 1000 148.02 060622,Health and Wellbeing,Publicity,A44266,
http://opendatacommunities.org/id/london-borough-council/sutton,London Borough of Sutton,16/06/2022,10008439,121.83, THE CRYERARTS CENTRE,REFRESHMENTS FOR SUTTON COLLEGE AWARDS EVENT AT CHARLES CRYER THEATRE 16 JUNE 2022,Health and Wellbeing,Publicity,A44266,
http://opendatacommunities.org/id/london-borough-council/sutton,London Borough of Sutton,09/06/2022,10008439,130.08, APM,APM PROJECT MANAGEMENT QUALIFICATION (PMQ) STUDY PACK (7TH EDITION) - PACK,Health and Wellbeing,Books,A43050,
http://opendatacommunities.org/id/london-borough-council/sutton,London Borough of Sutton,08/06/2022,10008439,88.29, AMZNMKTPLACE AMAZON.CO,40 METRES WHITE HYGIENE COACH ROLL FOR MASSAGE TABLE AND BEAUTYENVIRONMENT,Health and Wellbeing,Equipment And Materials Purchase,A40000,
http://opendatacommunities.org/id/london-borough-council/sutton,London Borough of Sutton,12/06/2022,10008439,8.32, AMAZON.CO.UK 2C3RF6MV4,SPLIT - INTEGRAL INFD128GBCOU 128GB USB MEMORY 2.0 FLASH DRIVE COURIER BLUE (100%),Peoples Services,LAC - Education,A44280,
http://opendatacommunities.org/id/london-borough-council/sutton,London Borough of Sutton,12/06/2022,10008439,6.33, AMAZON.CO.UK 2C48K95T4,"SPLIT - FULL, FULL, FULL OF LOVE (100%)",Peoples Services,LAC - Education,A44280,
http://opendatacommunities.org/id/london-borough-council/sutton,London Borough of Sutton,12/06/2022,10008439,9.58, AMAZON.CO.UK 2C4ED6564,SPLIT - BRE'R ANANCY AND THE MAGIC POT: 1 (100%),Peoples Services,LAC - Education,A44280,
http://opendatacommunities.org/id/london-borough-council/sutton,London Borough of Sutton,12/06/2022,10008439,7.37, AMAZON.CO.UK 2C54975I4,SPLIT - SO MUCH (100%),Peoples Services,LAC - Education,A44280,
http://opendatacommunities.org/id/london-borough-council/sutton,London Borough of Sutton,12/06/2022,10008439,9.99, AMAZON.CO.UK 2C2L57MR4,"SPLIT - THE ULTIMATE STUDENT COOKBOOK: CHEAP, FUN, EASY, TASTY FOOD (100%)",Peoples Services,LAC - Education,A44280,
http://opendatacommunities.org/id/london-borough-council/sutton,London Borough of Sutton,11/06/2022,10008439,10.49, AMAZON.CO.UK 2C7UK0XG4,SPLIT - MASTER MUSIC THEORY FOR GUITAR IN 14 DAYS: DAILY GUITAR THEORY LESSONS (100%),Peoples Services,LAC - Education,A44280,
http://opendatacommunities.org/id/london-borough-council/sutton,London Borough of Sutton,10/06/2022,10008439,7.34, AMZNMKTPLACE,SPLIT - PUKKA PAD JOTTA NOTEBOOK WIREBOUND PERFORATED RULED 80GSM 200PP A5 METALLIC REF JM021 [PACK 3] (100%),Peoples Services,LAC - Education,A44280,
http://opendatacommunities.org/id/london-borough-council/sutton,London Borough of Sutton,10/06/2022,10008439,10.00, AMAZON.CO.UK 2C0W57PI4,SPLIT - AMAZON.CO.UK GIFT CARD FOR CUSTOM AMOUNT IN A NAVY AND GOLD MINI ENVELOPE (100%),Peoples Services,LAC - Education,A44280,
http://opendatacommunities.org/id/london-borough-council/sutton,London Borough of Sutton,10/06/2022,10008439,10.43, AMZNMKTPLACE AMAZON.CO,SPLIT - JAMAICA ANANSI STORIES (CLASSIC REPRINT) (71.73%),Peoples Services,LAC - Education,A44280,
http://opendatacommunities.org/id/london-borough-council/sutton,London Borough of Sutton,10/06/2022,10008439,4.11, AMZNMKTPLACE AMAZON.CO,BALANCING ENTRY AMOUNT (28.27%),Peoples Services,LAC - Education,A44280,
http://opendatacommunities.org/id/london-borough-council/sutton,London Borough of Sutton,29/05/2022,10008439,1.35, AMZNMKTPLACE AMAZON.CO,SPLIT - TIGER PENCIL CASE - CLEAR SEE THROUGH - SHORT 20X12CM X 1 SINGLE (100%),Peoples Services,LAC - Education,A44280,
http://opendatacommunities.org/id/london-borough-council/sutton,London Borough of Sutton,28/05/2022,10008439,3.38, AMZNMKTPLACE,SPLIT - BIC CRISTAL ORIGINAL BALLPOINT PENS MEDIUM POINT 1.0MM BLUE PACK OF 10 (25.62%),Peoples Services,LAC - Education,A44280,
http://opendatacommunities.org/id/london-borough-council/sutton,London Borough of Sutton,28/05/2022,10008439,9.82, AMZNMKTPLACE,"SPLIT - BIC BALLPOINT PENS, COLOURING PENS, 4 COLOUR PENS, HIGHLIGHTERS AND BLACK PENS, PERFECT FOR SCHOOL AND OFFICE USE, STATIONERY SET OF 22 PENS (74.38%)",Peoples Services,LAC - Education,A44280,
http://opendatacommunities.org/id/london-borough-council/sutton,London Borough of Sutton,27/05/2022,10008439,5.00, AMZNMKTPLACE AMAZON.CO,SPLIT - UNI-BALL UB-157 EYE ROLLERBALL BLACK INK 5 PACK IN PLASTIC FREE PACKAGING (100%),Peoples Services,LAC - Education,A44280,
http://opendatacommunities.org/id/london-borough-council/sutton,London Borough of Sutton,27/05/2022,10008439,3.32, AMZNMKTPLACE AMAZON.CO,SPLIT - NU NOTEBOOKS - KRAFT RANGE - MANILLA WIRE BOUND A5 NOTEBOOK - STATIONERY NOTEBOOKS - PROFESSIONAL NOTEPAD - 160 PAGES (100%),Peoples Services,LAC - Education,A44280,
http://opendatacommunities.org/id/london-borough-council/sutton,London Borough of Sutton,27/05/2022,10008439,3.93, AMZNMKTPLACE,SPLIT - HIGHLIGHTER - STABILO BOSS ORIGINAL PASTEL WALLET OF 6 ASSORTED COLOURS (100%),Peoples Services,LAC - Education,A44280,
http://opendatacommunities.org/id/london-borough-council/sutton,London Borough of Sutton,27/05/2022,10008439,5.00, AMZNMKTPLACE,"SPLIT - BIC CRISTAL MULTI COLOUR BALLPOINT PENS, ASSORTED COLORS EVERY-DAY BIRO PENS WITH WIDE POINT (1.6MM), PACK OF 20 (100%)",Peoples Services,LAC - Education,A44280,
http://opendatacommunities.org/id/london-borough-council/sutton,London Borough of Sutton,27/05/2022,10008439,4.35, AMZNMKTPLACE AMAZON.CO,"SPLIT - BIC 4 COLOURS SHINE, MULTI-COLOURED BALLPOINT PENS, MEDIUM POINT (1.0MM) BIRO PENS, ASSORTED COLOURS, PACK OF 3 (100%)",Peoples Services,LAC - Education,A44280,
http://opendatacommunities.org/id/london-borough-council/sutton,London Borough of Sutton,12/06/2022,10008439,10.00, AMAZON.CO.UK 2C60S75T4,SPLIT - TRACING MY WAY TO THE TOP: AN ALPHABET COLOURING AND TRACING BOOK FOR KIDS AGED 3-5 YEARS (100%),Peoples Services,LAC - Education,A44280,
http://opendatacommunities.org/id/london-borough-council/sutton,London Borough of Sutton,12/06/2022,10008439,7.37, AMAZON.CO.UK 2C8YF3M74,SPLIT - I AM FEAR (THE ACKERMAN THRILLERS): 2 (100%),Peoples Services,LAC - Education,A44280,
http://opendatacommunities.org/id/london-borough-council/sutton,London Borough of Sutton,12/06/2022,10008439,7.99, AMAZON.CO.UK 2C0MG7ML4,SPLIT - ALPHABLOCKS A-Z PHONICS ACTIVITIES: A LIFT THE FLAP BOOK (100%),Peoples Services,LAC - Education,A44280,
http://opendatacommunities.org/id/london-borough-council/sutton,London Borough of Sutton,26/06/2022,10008439,10.99, AMZNMKTPLACE,SPLIT - 4 PIECES ENGLISH EDUCATIONAL POSTERS OTHER WAYS TO SAY SYNONYMS POSTER COMMONLY CONFUSED WORDS GRAMMAR LEARNING CHARTS FOR ELEMENTARY MIDDLE SCHOOL CL (31.77%),Peoples Services,LAC - Education,A44280,
http://opendatacommunities.org/id/london-borough-council/sutton,London Borough of Sutton,26/06/2022,10008439,24.75, AMZNMKTPLACE,SPLIT - ENGLISH-VIETNAMESE & VIETNAMESE-ENGLISH WORD-TO-WORD DICTIONARY (68.23%),Peoples Services,LAC - Education,A44280,
http://opendatacommunities.org/id/london-borough-council/sutton,London Borough of Sutton,25/06/2022,10008439,6.99, AMAZON.CO.UK 278PZ09R4,SPLIT - CASE CLOSED #1: MYSTERY IN THE MANSION (100%),Peoples Services,LAC - Education,A44280,
http://opendatacommunities.org/id/london-borough-council/sutton,London Borough of Sutton,23/06/2022,10008439,4.16, AMZNMKTPLACE,"SPLIT - PRO FACE & BODY PAINT CAKE POTS BY MOON CREATIONS - WHITE - PROFESSIONAL WATER BASED FACE PAINT MAKEUP FOR ADULTS, KIDS - 36G (41.65%)",Peoples Services,LAC - Education,A44280,
http://opendatacommunities.org/id/london-borough-council/sutton,London Borough of Sutton,23/06/2022,10008439,5.82, AMZNMKTPLACE,SPLIT - ARTISTS PAINT BRUSHES SET - ASELECTED 12PCS PAINT BRUSH SET FOR WATERCOLOR OIL ACRYLIC CRAFTS ROCK & FACE PAINTING (WHITE) (58.35%),Peoples Services,LAC - Education,A44280,
http://opendatacommunities.org/id/london-borough-council/sutton,London Borough of Sutton,23/06/2022,10008439,2.62, AMZNMKTPLACE AMAZON.CO,"SPLIT - DALER ROWNEY 212147004 SIZE 4 GRADUATE FAN BLENDER BRUSH, WHITE (100%)",Peoples Services,LAC - Education,A44280,
http://opendatacommunities.org/id/london-borough-council/sutton,London Borough of Sutton,22/06/2022,10008439,14.58, AMZNMKTPLACE,SPLIT - WIRE PRODUCTS PACK 10 GALVANISED STEEL J PINS RIBBED 300MM X 10MM METAL PEGS CAMPING AWNING MARQUEE (100%),Peoples Services,LAC - Education,A44280,
http://opendatacommunities.org/id/london-borough-council/sutton,London Borough of Sutton,22/06/2022,10008439,3.32, AMZNMKTPLACE AMAZON.CO,"SPLIT - SPRAY BOTTLES, 1.69OZ/50ML 3.38OZ/100ML CLEAR EMPTY FINE MIST PLASTIC MINI TRAVEL BOTTLE SET, SMALL REFILLABLE CONTAINERS WITH LABELS (3PCS 50ML) (28.56%)",Peoples Services,LAC - Education,A44280,
http://opendatacommunities.org/id/london-borough-council/sutton,London Borough of Sutton,22/06/2022,10008439,4.16, AMZNMKTPLACE AMAZON.CO,"SPLIT - PRO FACE & BODY PAINT CAKE POTS BY MOON CREATIONS - LIGHT GREEN - PROFESSIONAL WATER BASED FACE PAINT MAKEUP FOR ADULTS, KIDS - 36G (35.72%)",Peoples Services,LAC - Education,A44280,
http://opendatacommunities.org/id/london-borough-council/sutton,London Borough of Sutton,22/06/2022,10008439,4.16, AMZNMKTPLACE AMAZON.CO,"SPLIT - PRO FACE & BODY PAINT CAKE POTS BY MOON CREATIONS - LILAC - PROFESSIONAL WATER BASED FACE PAINT MAKEUP FOR ADULTS, KIDS - 36G (35.72%)",Peoples Services,LAC - Education,A44280,
http://opendatacommunities.org/id/london-borough-council/sutton,London Borough of Sutton,22/06/2022,10008439,8.60, AMZNMKTPLACE,SPLIT - 30 GM DIAMOND FX ESSENTIAL FACE PAINT - PINK (50%),Peoples Services,LAC - Education,A44280,
http://opendatacommunities.org/id/london-borough-council/sutton,London Borough of Sutton,22/06/2022,10008439,8.60, AMZNMKTPLACE,SPLIT - 30 GM DIAMOND FX ESSENTIAL FACE PAINT - BLACK (50%),Peoples Services,LAC - Education,A44280,
http://opendatacommunities.org/id/london-borough-council/sutton,London Borough of Sutton,22/06/2022,10008439,6.66, AMZNMKTPLACE,SPLIT - 30 GM DIAMOND FX ESSENTIAL FACE PAINT - LIGHT BLUE (100%),Peoples Services,LAC - Education,A44280,
http://opendatacommunities.org/id/london-borough-council/sutton,London Borough of Sutton,22/06/2022,10008439,4.16, AMZNMKTPLACE,"SPLIT - IRIDESCENT GLITTER SHAKERS BY MOON GLITTER - WHITE - COSMETIC FESTIVAL MAKEUP GLITTER FOR FACE, BODY, NAILS, HAIR, LIPS - 5G (100%)",Peoples Services,LAC - Education,A44280,
http://opendatacommunities.org/id/london-borough-council/sutton,London Borough of Sutton,22/06/2022,10008439,157.50, AMAZON.CO.UK 276UY0PR4,"SPLIT - ACER CHROMEBOOK 314 CB314-H - (INTEL CELERON N4000, 4GB RAM, 32GB EMMC, 14 INCH HD DISPLAY, CHROME OS, SILVER) (100%)",Peoples Services,LAC - Education,A44280,
http://opendatacommunities.org/id/london-borough-council/sutton,London Borough of Sutton,22/06/2022,10008439,157.50, AMAZON.CO.UK 276FO6XP4,"SPLIT - ACER CHROMEBOOK 314 CB314-H - (INTEL CELERON N4000, 4GB RAM, 32GB EMMC, 14 INCH HD DISPLAY, CHROME OS, SILVER) (100%)",Peoples Services,LAC - Education,A44280,
http://opendatacommunities.org/id/london-borough-council/sutton,London Borough of Sutton,16/06/2022,10008439,325.00, WWW.GAMEWAGON.CO.UK,PAYMENT FOR INVOICE(S) INV-18080  - SUMMER FUN DAY ENRICHMENT ACTIVITY FOR CLA,Peoples Services,LAC - Education,A44280,
http://opendatacommunities.org/id/london-borough-council/sutton,London Borough of Sutton,15/06/2022,10008439,15.59, AMAZON.CO.UK 2C3VZ97X4,SPLIT - IN SEARCH OF LOST TIMES VOLUME 1 (100%),Peoples Services,LAC - Education,A44280,
http://opendatacommunities.org/id/london-borough-council/sutton,London Borough of Sutton,14/06/2022,10008439,8.29, AMZNMKTPLACE,"SPLIT - HERBESTS FRUIT FLASH CARDS - TODDLER LEARNING GAMES - BABY FLASH CARDS/PRESCHOOL FLASHCARDS FOR TODDLERS - LEARNING CARDS - TODDLER GIFTS EDUCATIONAL, (100%)",Peoples Services,LAC - Education,A44280,
http://opendatacommunities.org/id/london-borough-council/sutton,London Borough of Sutton,12/06/2022,10008439,2.91, AMZNMKTPLACE,SPLIT - PUKKA PAD A4 JOTTA METALLIC WIREBOUND NOTEBOOK JM018 GREEN (100%),Peoples Services,LAC - Education,A44280,
